bitfinex/quotes_BTCUSD_20250508
["timestamp","ask_amount","ask_price","bid_price","bid_amount"]
[1746737715697,2.71418865,102490.0,102480.0,4.13065932]
[1746737715912,2.71418865,102490.0,102480.0,3.58489818]
[1746737716144,2.71418865,102490.0,102480.0,3.93496694]
[1746737716355,2.71418865,102490.0,102480.0,3.66918457]
[1746737716560,2.71418865,102490.0,102480.0,2.99157024]
[1746737716769,2.71418865,102490.0,102480.0,1.37066776]
[1746737716770,2.74568865,102490.0,102480.0,1.37066776]
[1746737716964,2.71418865,102490.0,102480.0,1.37066776]
[1746737717169,2.71418865,102490.0,102480.0,1.71066776]
[1746737717381,2.71418865,102490.0,102480.0,1.7341142]
[1746737717989,2.71418865,102490.0,102480.0,2.3775109]
[1746737718575,2.71418865,102490.0,102480.0,2.80889328]
[1746737718829,2.71418865,102490.0,102480.0,2.51003438]
[1746737719126,2.71418865,102490.0,102480.0,2.0927642]
[1746737719285,2.71418865,102490.0,102480.0,2.4361609]
[1746737719478,2.71418865,102490.0,102480.0,2.0927642]
[1746737719770,2.71418865,102490.0,102480.0,2.4361609]
[1746737719983,2.71418865,102490.0,102480.0,2.7361609]
[1746737720231,2.71418865,102490.0,102480.0,2.6775109]
[1746737720437,2.71418865,102490.0,102480.0,2.3927642]
[1746737720637,2.71418865,102490.0,102480.0,3.10969328]
[1746737720951,2.71418865,102490.0,102480.0,2.43289988]
[1746737721171,2.67515707,102490.0,102480.0,2.7469609]
[1746737721436,2.67515707,102490.0,102480.0,2.7369609]
[1746737721592,2.67027813,102490.0,102480.0,2.77629658]
[1746737722003,2.61748185,102490.0,102480.0,2.42622782]
[1746737722207,2.61748185,102490.0,102480.0,3.14675902]
[1746737722411,2.61260291,102490.0,102480.0,2.80336232]
[1746737722614,2.61260291,102490.0,102480.0,3.13785343]
[1746737722817,2.60772397,102490.0,102480.0,3.13785343]
[1746737723216,2.60284503,102490.0,102480.0,3.14455228]
[1746737723639,2.59796609,102490.0,102480.0,3.14455228]
[1746737723999,2.55388231,102490.0,102480.0,3.15347903]
[1746737724198,2.55388231,102490.0,102480.0,2.80928233]
[1746737724414,2.54900337,102490.0,102480.0,2.80928233]
[1746737724605,2.54900337,102490.0,102480.0,2.45998678]
[1746737724841,2.54412443,102490.0,102480.0,3.14678018]
[1746737725074,2.53924549,102490.0,102480.0,2.44918678]
[1746737725285,2.53924549,102490.0,102480.0,2.78365673]
[1746737725427,2.53436655,102490.0,102480.0,2.44026003]
[1746737725657,2.53436655,102490.0,102480.0,2.78365673]
[1746737726531,2.52948851,102490.0,102480.0,3.13705343]
[1746737726754,2.52461047,102490.0,102480.0,3.13785343]
[1746737726970,2.52461047,102490.0,102480.0,2.44106003]
[1746737727194,2.48558609,102490.0,102480.0,2.75991893]
[1746737727632,2.48070805,102490.0,102480.0,2.75991893]
[1746737727850,2.44656171,102490.0,102480.0,3.14598857]
[1746737728076,2.44168367,102490.0,102480.0,3.15268993]
[1746737728495,2.40265929,102490.0,102480.0,3.15348993]
[1746737728702,2.40265929,102490.0,102480.0,3.14678857]
[1746737728918,2.39778125,102490.0,102480.0,2.45999517]
[1746737729145,2.35875687,102490.0,102480.0,3.13785343]
[1746737729582,2.35387883,102490.0,102480.0,3.13785343]
[1746737729791,2.31973249,102490.0,102480.0,3.13785343]
[1746737730003,2.31485445,102490.0,102480.0,3.13785343]
[1746737730453,2.27583007,102490.0,102480.0,3.13785343]
[1746737730892,2.27095203,102490.0,102480.0,3.13705343]
[1746737731118,2.23192765,102490.0,102480.0,3.13705343]
[1746737731332,2.23192765,102490.0,102480.0,3.14600314]
[1746737731580,2.22704961,102490.0,102480.0,3.14600314]
[1746737731832,2.22704961,102490.0,102480.0,3.11897989]
[1746737732035,2.22217157,102490.0,102480.0,3.11897989]
[1746737732254,2.23026507,102490.0,102480.0,3.11897989]
[1746737732456,2.22538703,102490.0,102480.0,3.11897989]
[1746737732681,2.22538703,102490.0,102480.0,3.11226534]
[1746737732906,2.22050899,102490.0,102480.0,3.11226534]
[1746737733230,2.21563095,102490.0,102480.0,3.11226534]
[1746737733671,2.21075291,102490.0,102480.0,3.11226534]
[1746737733902,2.16283616,102490.0,102480.0,3.11226534]
[1746737734143,2.15795812,102490.0,102480.0,3.11226534]
[1746737734593,2.15308008,102490.0,102480.0,3.11226534]
[1746737734830,2.14820204,102490.0,102480.0,3.11226534]
[1746737735297,2.143324,102490.0,102480.0,3.11226534]
[1746737735555,2.193324,102490.0,102480.0,3.08292966]
[1746737735789,2.18844596,102490.0,102480.0,3.08292966]
[1746737736039,2.18943296,102490.0,102480.0,2.50643166]
[1746737736280,2.18943296,102490.0,102480.0,6.48633983]
[1746737736489,2.18943296,102490.0,102480.0,6.02723683]
[1746737736690,2.18455492,102490.0,102480.0,6.02723683]
[1746737736895,2.17955492,102490.0,102480.0,6.05655293]
[1746737737093,2.17467688,102490.0,102480.0,6.05655293]
[1746737737496,1.16797603,102490.0,102480.0,6.46025293]
[1746737737704,1.13148603,102490.0,102480.0,6.5700189]
[1746737737904,1.02222866,102490.0,102480.0,6.404065]
[1746737738125,0.98808232,102490.0,102480.0,6.404065]
[1746737738325,0.98898879,102490.0,102480.0,6.42809596]
[1746737738599,0.96378272,102490.0,102480.0,6.52583376]
[1746737738835,0.021,102490.0,102480.0,6.62583376]
[1746737739036,0.0254184,102520.0,102480.0,6.62583376]
[1746737739327,0.0120391,102580.0,102490.0,0.7695529]
[1746737739521,0.02051354,102620.0,102490.0,0.7695529]
[1746737739522,0.21693896,102640.0,102630.0,0.3]
[1746737739718,0.19745386,102640.0,102630.0,1.06371172]
[1746737739936,0.31224082,102590.0,102580.0,0.57869874]
[1746737740110,0.31224082,102590.0,102580.0,1.20755459]
[1746737740239,0.31224082,102610.0,102590.0,4.75664952]
[1746737740441,0.33758579,102610.0,102600.0,2.11519377]
[1746737740664,0.19491277,102610.0,102600.0,2.10954358]
[1746737740870,0.23000356,102610.0,102600.0,1.72534058]
[1746737741069,0.57340026,102610.0,102600.0,0.72534058]
[1746737741264,0.57340026,102610.0,102600.0,1.59872758]
[1746737741630,0.21051277,102610.0,102600.0,2.11515758]
[1746737741836,0.31271783,102620.0,102610.0,0.58759441]
[1746737742041,0.30784534,102620.0,102610.0,5.31108875]
[1746737742247,0.20719788,102640.0,102630.0,0.72293439]
[1746737742419,0.6057715,102650.0,102640.0,0.00974269]
[1746737742420,0.23285039,102650.0,102640.0,0.00974269]
[1746737742627,0.23285039,102650.0,102640.0,5.19151079]
[1746737742628,0.03801357,102650.0,102640.0,5.19151079]
[1746737742762,0.03328418,102650.0,102640.0,5.19151079]
[1746737742967,0.000999,102660.0,102640.0,5.19151079]
[1746737742968,0.00017571,102660.0,102640.0,5.19151079]
[1746737743186,0.23077476,102660.0,102650.0,1.85775892]
[1746737743550,0.67348499,102670.0,102660.0,0.20935869]
[1746737743551,0.0268888,102670.0,102660.0,0.20935869]
[1746737743748,0.25090663,102670.0,102660.0,1.67792446]
[1746737743952,0.24116736,102670.0,102660.0,1.47336592]
[1746737744211,0.69295736,102670.0,102660.0,0.81014492]
[1746737744387,0.19892664,102690.0,102680.0,1.16399573]
[1746737744388,0.0040367,102690.0,102680.0,1.16399573]
[1746737744662,0.00417968,102690.0,102680.0,3.7843645]
[1746737744791,0.00417968,102690.0,102680.0,3.7943645]
[1746737745002,0.48518409,102690.0,102680.0,3.07863592]
[1746737745227,0.23391612,102690.0,102680.0,0.60395492]
[1746737745435,0.03915519,102690.0,102680.0,0.60395492]
[1746737745644,0.00417968,102690.0,102680.0,1.4424915]
[1746737745874,0.00417968,102690.0,102680.0,1.1544915]
[1746737746348,0.00417968,102690.0,102680.0,1.5544915]
[1746737747136,0.00980324,102690.0,102680.0,1.5544915]
[1746737747601,0.00980324,102690.0,102680.0,1.5574915]
[1746737748083,0.00980324,102690.0,102680.0,1.61602777]
[1746737748292,0.00980324,102690.0,102680.0,1.64779513]
[1746737748511,0.00417968,102690.0,102680.0,1.64779513]
[1746737748737,0.01133782,102690.0,102680.0,1.64779513]
[1746737749235,0.01133782,102690.0,102680.0,1.24779513]
[1746737749425,0.00417968,102690.0,102680.0,1.24779513]
[1746737749676,0.01030501,102690.0,102680.0,1.64779513]
[1746737749896,0.01030501,102690.0,102680.0,1.5867085]
[1746737750128,0.00417968,102690.0,102680.0,1.61357355]
[1746737750364,0.01030501,102690.0,102680.0,1.8867085]
[1746737750625,0.00417968,102690.0,102680.0,1.8867085]
[1746737750843,0.01030501,102690.0,102680.0,1.8867085]
[1746737751064,0.01030501,102690.0,102680.0,1.90857355]
[1746737751285,0.49184633,102690.0,102680.0,1.23769071]
[1746737751507,0.49184633,102690.0,102680.0,1.23595065]
[1746737751508,0.13577968,102690.0,102680.0,1.23595065]
[1746737751732,0.14309641,102690.0,102680.0,1.23595065]
[1746737751963,0.12789641,102690.0,102680.0,1.53595065]
[1746737752408,0.1376336,102690.0,102680.0,1.53595065]
[1746737752650,0.1476336,102690.0,102680.0,1.53595065]
[1746737752880,0.18280835,102690.0,102680.0,1.53595065]
[1746737753323,0.65499707,102690.0,102680.0,1.52621232]
[1746737753536,0.36875454,102690.0,102680.0,0.63941692]
[1746737753769,0.83028391,102690.0,102680.0,0.63941692]
[1746737753997,0.36875454,102690.0,102680.0,0.65773592]
[1746737754229,0.83028391,102690.0,102680.0,0.50866692]
[1746737754514,0.83028391,102690.0,102680.0,0.50466692]
[1746737754745,0.82054606,102690.0,102680.0,1.65781392]
[1746737755100,0.82254606,102690.0,102680.0,0.50266692]
[1746737755187,0.82254606,102690.0,102680.0,0.50066692]
[1746737755404,0.82254606,102690.0,102680.0,0.4]
[1746737755405,0.78341111,102690.0,102680.0,0.4]
[1746737756080,0.12712005,102690.0,102680.0,2.01752765]
[1746737756294,0.1465949,102690.0,102680.0,2.35752765]
[1746737756512,0.56776203,102690.0,102680.0,2.19042065]
[1746737756729,0.56102427,102690.0,102680.0,2.19042065]
[1746737757196,0.0964949,102690.0,102680.0,2.18068232]
[1746737757417,0.56576269,102690.0,102680.0,1.33328965]
[1746737757655,0.76002362,102690.0,102680.0,1.32655132]
[1746737757887,0.55502484,102690.0,102680.0,1.33628965]
[1746737758116,0.56426269,102690.0,102680.0,1.33628965]
[1746737758448,0.08922014,102690.0,102680.0,1.33628965]
[1746737758609,0.08922014,102690.0,102680.0,1.93628965]
[1746737758610,0.04708286,102690.0,102680.0,1.93628965]
[1746737758863,0.04658286,102690.0,102680.0,1.93628965]
[1746737759045,0.04558286,102690.0,102680.0,1.93628965]
[1746737759143,0.04558286,102690.0,102680.0,1.53628965]
[1746737759545,0.04508286,102690.0,102680.0,1.53628965]
[1746737759756,0.04458286,102690.0,102680.0,1.93628965]
[1746737760166,0.04458286,102690.0,102680.0,2.0094805]
[1746737760167,0.04408286,102690.0,102680.0,2.0094805]
[1746737760335,0.04358286,102690.0,102680.0,1.62415965]
[1746737760532,0.04258286,102690.0,102680.0,1.56550965]
[1746737760790,0.04258286,102690.0,102680.0,0.90998766]
[1746737760944,0.04208286,102690.0,102680.0,4.9727965]
[1746737761142,0.04158286,102690.0,102680.0,4.21549965]
[1746737761505,0.03284473,102690.0,102680.0,2.81901184]
[1746737761805,0.03234473,102690.0,102680.0,2.81901184]
[1746737762000,0.03945128,102690.0,102680.0,2.81901184]
[1746737762376,0.03184473,102690.0,102680.0,1.09713184]
[1746737762608,0.63228882,102710.0,102700.0,0.22395238]
[1746737762823,0.63228882,102710.0,102700.0,2.7802833]
[1746737763028,0.62961746,102710.0,102700.0,2.34879678]
[1746737763196,0.65832562,102710.0,102700.0,2.36827001]
[1746737763423,0.14711656,102710.0,102700.0,2.69029592]
[1746737763646,0.11531656,102710.0,102700.0,3.70348677]
[1746737763837,0.11681656,102710.0,102700.0,2.02810588]
[1746737764036,0.11681656,102710.0,102700.0,2.03784269]
[1746737764241,0.11931656,102710.0,102700.0,2.03784269]
[1746737764451,0.11408656,102710.0,102700.0,2.03784269]
[1746737764691,0.11108656,102710.0,102700.0,2.03784269]
[1746737765009,0.06688208,102710.0,102700.0,3.23087206]
[1746737765224,0.01,102730.0,102720.0,1.18844934]
[1746737765469,0.01,102730.0,102720.0,3.21050365]
[1746737765470,0.0099765,102730.0,102720.0,3.21050365]
[1746737765690,0.0094765,102730.0,102720.0,4.39323325]
[1746737765897,0.05899078,102780.0,102750.0,0.6]
[1746737766092,0.08481944,102780.0,102770.0,0.62244957]
[1746737766321,0.09724957,102780.0,102770.0,2.99039857]
[1746737766544,0.09674957,102780.0,102770.0,2.77617702]
[1746737766907,0.05783378,102780.0,102770.0,1.68666382]
[1746737767081,0.04064511,102780.0,102770.0,1.70434779]
[1746737767196,0.00018185,102790.0,102780.0,0.22377779]
[1746737767426,0.00018185,102790.0,102780.0,2.7465303]
[1746737767637,0.00018185,102790.0,102780.0,2.73215765]
[1746737767888,0.00018185,102790.0,102780.0,2.75132418]
[1746737768309,0.00018185,102790.0,102780.0,2.7804816]
[1746737768535,0.00018185,102790.0,102780.0,2.75132418]
[1746737768748,0.00018185,102790.0,102780.0,3.12610109]
[1746737768968,0.00018185,102790.0,102780.0,3.62436953]
[1746737769166,0.00018185,102790.0,102780.0,4.02313545]
[1746737769389,0.00018185,102790.0,102780.0,3.48368274]
[1746737769704,0.02440477,102800.0,102790.0,0.24829687]
[1746737769767,0.02440477,102800.0,102790.0,0.54829687]
[1746737769963,0.00413488,102800.0,102790.0,3.58793203]
[1746737770278,0.00025253,102820.0,102810.0,0.84825334]
[1746737770417,0.00025253,102820.0,102810.0,3.72603579]
[1746737770624,0.00025253,102820.0,102810.0,1.82670292]
[1746737770985,0.01970276,102820.0,102810.0,2.34699706]
[1746737771076,0.0099776,102820.0,102810.0,2.64699706]
[1746737771278,0.69234738,102820.0,102810.0,0.53811857]
[1746737771476,0.23081801,102820.0,102810.0,0.53653692]
[1746737771680,0.23081801,102820.0,102810.0,0.93653692]
[1746737772002,0.69234775,102820.0,102810.0,0.93653692]
[1746737772282,0.70814775,102820.0,102810.0,0.83587]
[1746737772484,0.25661838,102820.0,102810.0,0.83087]
[1746737772618,0.72181036,102820.0,102810.0,0.83087]
[1746737772822,0.72181036,102820.0,102810.0,0.83387]
[1746737773021,0.26028099,102820.0,102810.0,0.83087]
[1746737773279,0.26028099,102820.0,102810.0,0.83587]
[1746737773479,0.72181036,102820.0,102810.0,0.83587]
[1746737773678,0.72181036,102820.0,102810.0,0.642649]
[1746737773830,0.75056806,102820.0,102810.0,0.565382]
[1746737774033,0.75156806,102820.0,102810.0,0.538773]
[1746737774414,0.04731514,102820.0,102810.0,0.83397352]
[1746737774673,0.0375775,102820.0,102810.0,0.86315241]
[1746737774883,0.53758983,102820.0,102810.0,0.8631526]
[1746737775482,0.33256979,102800.0,102790.0,0.51957644]
[1746737775485,0.33256979,102800.0,102790.0,0.63969946]
[1746737775538,0.82285686,102800.0,102790.0,1.88269398]
[1746737775670,1.07859101,102800.0,102790.0,1.57773838]
[1746737775889,0.87431153,102800.0,102790.0,0.45451722]
[1746737776085,0.85485686,102800.0,102790.0,0.87397332]
[1746737776274,0.35394904,102800.0,102790.0,0.87397332]
[1746737776481,0.38313039,102800.0,102790.0,0.85451722]
[1746737776682,1.0745434,102800.0,102790.0,0.55455038]
[1746737777035,1.08427093,102800.0,102790.0,0.55455038]
[1746737777246,1.07454359,102800.0,102790.0,0.55755038]
[1746737777453,1.07454359,102800.0,102790.0,0.54955038]
[1746737777673,1.07454359,102800.0,102790.0,0.40047538]
[1746737777887,1.17521051,102800.0,102790.0,0.40347538]
[1746737778088,1.17521051,102800.0,102790.0,0.40647538]
[1746737778512,1.07454359,102800.0,102790.0,0.40647538]
[1746737778846,0.58425652,102800.0,102790.0,0.40647538]
[1746737779055,1.07454359,102800.0,102790.0,1.31942338]
[1746737779253,1.07454359,102800.0,102790.0,1.32042338]
[1746737779489,0.58425652,102800.0,102790.0,0.40147538]
[1746737779683,1.07454359,102800.0,102790.0,1.58545638]
[1746737779882,0.58425652,102800.0,102790.0,1.58545638]
[1746737780082,1.07454359,102800.0,102790.0,1.58545638]
[1746737780289,0.58425652,102800.0,102790.0,1.58445638]
[1746737780490,1.07554359,102800.0,102790.0,1.58445638]
[1746737781032,0.58525652,102800.0,102790.0,1.58445638]
[1746737781153,1.07554359,102800.0,102790.0,0.40147538]
[1746737781349,1.07554359,102800.0,102790.0,1.97873838]
[1746737781869,0.58525652,102800.0,102790.0,1.97873838]
[1746737782086,1.07554359,102800.0,102790.0,1.97873838]
[1746737782313,1.07554359,102800.0,102790.0,1.93769238]
[1746737782522,0.59525652,102800.0,102790.0,1.93769238]
[1746737782833,1.08554359,102800.0,102790.0,1.94686244]
[1746737783036,0.39097609,102800.0,102790.0,2.22926874]
[1746737783250,0.87153611,102800.0,102790.0,2.33866357]
[1746737783395,0.38440305,102800.0,102790.0,2.32220776]
[1746737783607,0.40385763,102800.0,102790.0,2.34166423]
[1746737783808,0.36494904,102800.0,102790.0,2.35139214]
[1746737784219,0.36394904,102800.0,102790.0,2.35139214]
[1746737784460,0.373676,102800.0,102790.0,2.34522208]
[1746737784918,0.373676,102800.0,102790.0,2.04444188]
[1746737785283,0.38340324,102800.0,102790.0,2.04144188]
[1746737785485,0.36394904,102800.0,102790.0,2.04909437]
[1746737786038,0.36394904,102800.0,102790.0,2.05409437]
[1746737786200,0.34734904,102800.0,102790.0,2.07021434]
[1746737786359,0.34256979,102800.0,102790.0,1.67021434]
[1746737786566,0.34256979,102800.0,102790.0,1.67321434]
[1746737786763,0.34256979,102800.0,102790.0,2.07321434]
[1746737786988,0.34256979,102800.0,102790.0,3.60167903]
[1746737787223,0.34256979,102800.0,102790.0,3.15637096]
[1746737787432,0.34256979,102800.0,102790.0,1.97968896]
[1746737787975,0.29364979,102800.0,102790.0,1.23571134]
[1746737787976,0.29364979,102800.0,102790.0,1.18571134]
[1746737788145,0.29364979,102800.0,102790.0,6.23571134]
[1746737788557,0.29364979,102800.0,102790.0,5.24000234]
[1746737788960,0.29364979,102800.0,102790.0,5.17700234]
[1746737789186,0.29364979,102800.0,102790.0,4.88100234]
[1746737789317,0.29364979,102800.0,102790.0,4.83428249]
[1746737789507,0.29364979,102800.0,102790.0,3.74688949]
[1746737789508,0.31024979,102800.0,102790.0,3.74688949]
[1746737789709,0.30974979,102800.0,102790.0,3.75088949]
[1746737789926,0.31267477,102800.0,102790.0,3.75088949]
[1746737790155,1.04022154,102800.0,102790.0,2.64024779]
[1746737790449,1.04944916,102800.0,102790.0,0.94174324]
[1746737790679,1.02899515,102800.0,102790.0,0.03146179]
[1746737790892,1.12916207,102800.0,102790.0,0.03146179]
[1746737791093,1.12916207,102800.0,102790.0,0.02746179]
[1746737791094,1.12866207,102800.0,102790.0,0.02746179]
[1746737791344,1.12866207,102800.0,102790.0,0.42746179]
[1746737791345,1.08907865,102800.0,102790.0,0.42746179]
[1746737791450,0.59879158,102800.0,102790.0,0.42846179]
[1746737791812,0.25141709,102800.0,102790.0,0.70028869]
[1746737792099,0.24806637,102800.0,102790.0,1.67775746]
[1746737792310,0.24756637,102800.0,102790.0,1.28975746]
[1746737792507,0.24706637,102800.0,102790.0,1.28633658]
[1746737792792,0.24566637,102800.0,102790.0,1.68633658]
[1746737792963,0.16634237,102800.0,102790.0,1.68633658]
[1746737793148,0.16584237,102800.0,102790.0,0.82407558]
[1746737793355,0.68792944,102800.0,102790.0,2.46680763]
[1746737793556,2.91116369,102800.0,102790.0,0.69904279]
[1746737793683,2.91116369,102800.0,102790.0,0.67450779]
[1746737793684,2.90093673,102800.0,102790.0,0.67450779]
[1746737793969,2.89120949,102800.0,102790.0,0.48511179]
[1746737794096,2.19664237,102800.0,102790.0,0.87062781]
[1746737794294,2.19664237,102800.0,102790.0,0.97129473]
[1746737794615,2.18134237,102800.0,102790.0,0.97129473]
[1746737794884,2.18134237,102800.0,102790.0,0.98583558]
[1746737795058,2.16484237,102800.0,102790.0,0.98583558]
[1746737795319,2.16484237,102800.0,102790.0,1.28708078]
[1746737795428,2.16484237,102800.0,102790.0,2.0291584]
[1746737795823,2.16484237,102800.0,102790.0,1.88708078]
[1746737796040,2.16484237,102800.0,102790.0,1.28608078]
[1746737796245,2.14084237,102800.0,102790.0,2.54486785]
[1746737796458,2.14084237,102800.0,102790.0,2.10688611]
[1746737796459,2.01,102800.0,102790.0,2.10688611]
[1746737796655,1.93242622,102800.0,102790.0,2.63297318]
[1746737796851,1.37850622,102800.0,102790.0,2.03017318]
[1746737797080,0.01,102810.0,102800.0,0.28238425]
[1746737797289,0.01,102810.0,102800.0,4.49719017]
[1746737797487,0.01,102810.0,102800.0,3.33079117]
[1746737797687,0.01,102810.0,102800.0,3.28745902]
[1746737798068,0.26591259,102810.0,102800.0,2.37573354]
[1746737798273,0.76592634,102810.0,102800.0,0.57449755]
[1746737798547,0.0422,102810.0,102800.0,0.5842246]
[1746737798682,0.01,102810.0,102800.0,0.59395156]
[1746737798880,1.39150759,102800.0,102790.0,0.90504683]
[1746737799082,1.39150759,102800.0,102790.0,5.82507385]
[1746737799470,1.39150759,102800.0,102790.0,5.84071647]
[1746737799673,1.39150759,102800.0,102790.0,5.09823947]
[1746737799893,1.39150759,102800.0,102790.0,5.10423947]
[1746737800096,1.39150759,102800.0,102790.0,5.84031967]
[1746737800327,1.39150759,102800.0,102790.0,5.81223947]
[1746737800535,1.39150759,102800.0,102790.0,5.84695405]
[1746737800742,1.39150759,102800.0,102790.0,5.8692278]
[1746737801029,1.39150759,102800.0,102790.0,6.38869287]
[1746737801227,1.16550759,102800.0,102790.0,6.24223687]
[1746737801641,1.16228785,102800.0,102790.0,6.21415667]
[1746737802036,1.16228785,102800.0,102790.0,2.37407067]
[1746737802255,1.16228785,102800.0,102790.0,6.91425867]
[1746737802397,1.16228785,102800.0,102790.0,5.68128598]
[1746737802876,1.16228785,102800.0,102790.0,5.67355308]
[1746737803071,1.16228785,102800.0,102790.0,5.16416693]
[1746737803187,1.16228785,102800.0,102790.0,4.98568993]
[1746737803411,0.96028785,102800.0,102790.0,1.73341193]
[1746737803600,0.96028785,102800.0,102790.0,5.22613893]
[1746737803818,0.96028785,102800.0,102790.0,4.73823593]
[1746737804028,0.96028785,102800.0,102790.0,4.47738493]
[1746737804366,0.96028785,102800.0,102790.0,4.41284408]
[1746737804614,0.96028785,102800.0,102790.0,5.03765877]
[1746737804738,0.96028785,102800.0,102790.0,5.05219962]
[1746737804947,0.87983285,102800.0,102790.0,4.56191255]
[1746737805148,0.87983285,102800.0,102790.0,4.55527817]
[1746737805561,0.87803285,102800.0,102790.0,4.55527817]
[1746737805845,0.87803285,102800.0,102790.0,4.50527817]
[1746737806333,0.87803285,102800.0,102790.0,4.93691524]
[1746737806607,0.87803285,102800.0,102790.0,4.99556524]
[1746737806840,0.63695247,102800.0,102790.0,5.04556524]
[1746737807046,0.43495247,102800.0,102790.0,5.09556524]
[1746737807232,0.33395247,102800.0,102790.0,5.09556524]
[1746737807465,0.23295247,102800.0,102790.0,5.09556524]
[1746737807680,0.08303247,102800.0,102790.0,5.09556524]
[1746737807883,0.08303247,102800.0,102790.0,4.60527817]
[1746737808428,0.08303247,102800.0,102790.0,5.05167639]
[1746737808631,0.08303247,102800.0,102790.0,4.56138932]
[1746737809033,0.0780098,102800.0,102790.0,4.56138932]
[1746737809236,0.0780098,102800.0,102790.0,4.51138932]
[1746737809434,0.0780098,102800.0,102790.0,4.56138932]
[1746737809648,0.0076098,102800.0,102790.0,4.09179285]
[1746737809859,0.01,102810.0,102800.0,0.89238425]
[1746737810096,0.01,102810.0,102800.0,5.79295517]
[1746737810388,0.01,102810.0,102800.0,4.94336402]
[1746737810586,0.01,102810.0,102800.0,4.26017317]
[1746737811172,0.01,102810.0,102800.0,4.16142217]
[1746737812055,0.01,102810.0,102800.0,4.17242217]
[1746737812299,0.01,102810.0,102800.0,4.18696302]
[1746737812744,0.01,102810.0,102800.0,3.28900602]
[1746737812745,0.0261,102810.0,102800.0,3.28900602]
[1746737813174,0.0419,102810.0,102800.0,3.68900602]
[1746737813869,0.0419,102810.0,102800.0,1.847522]
[1746737813870,0.71596325,102810.0,102800.0,1.847522]
[1746737814104,0.71596325,102810.0,102800.0,0.587097]
[1746737814318,0.23487995,102800.0,102790.0,0.00047538]
[1746737814543,1.25570079,102800.0,102790.0,0.00047538]
[1746737815818,0.82609045,102800.0,102790.0,0.00247538]
[1746737815994,0.82609045,102800.0,102790.0,0.00447538]
[1746737816713,0.20429983,102790.0,102780.0,0.401]
[1746737816924,0.82611033,102790.0,102780.0,0.40147586]
[1746737818568,0.82611033,102790.0,102750.0,0.22295505]
[1746737818569,0.28635948,102760.0,102750.0,0.00884596]
[1746737818862,0.82756998,102760.0,102750.0,0.00932238]
[1746737819081,0.24615293,102730.0,102720.0,0.05898017]
[1746737819245,0.83736343,102730.0,102720.0,0.05945667]
[1746737819450,0.21419463,102710.0,102700.0,0.12827755]
[1746737819652,0.83670513,102710.0,102700.0,0.12827755]
[1746737819814,0.83670513,102710.0,102700.0,0.12875423]
[1746737820114,0.83670513,102710.0,102700.0,0.52875423]
[1746737820655,0.83670513,102710.0,102700.0,0.51215423]
[1746737820656,0.93670513,102710.0,102700.0,0.51215423]
[1746737820906,0.29643635,102690.0,102680.0,0.08645998]
[1746737821124,0.24647808,102670.0,102660.0,0.09994189]
[1746737821311,0.88768858,102670.0,102660.0,0.10041887]
[1746737821877,0.88768858,102670.0,102660.0,0.50041887]
[1746737822134,0.64288971,102670.0,102660.0,0.40047698]
[1746737822282,0.14260629,102670.0,102660.0,0.60503552]
[1746737822492,0.83768896,102670.0,102660.0,0.59529482]
[1746737822894,0.83868896,102670.0,102660.0,0.59529482]
[1746737823123,0.15334651,102670.0,102660.0,0.59529482]
[1746737823324,0.83868896,102670.0,102660.0,0.41027376]
[1746737823535,0.34814538,102670.0,102660.0,0.40047698]
[1746737823695,0.83868896,102670.0,102660.0,0.40047698]
[1746737824123,0.77129158,102670.0,102660.0,0.40047698]
[1746737824556,0.280748,102670.0,102660.0,0.40047698]
[1746737824802,0.001,102670.0,102660.0,1.64433273]
[1746737825167,0.01073927,102670.0,102660.0,0.01062837]
[1746737825501,0.02047864,102670.0,102660.0,0.20544621]
[1746737825546,0.001,102670.0,102660.0,1.32378024]
[1746737826061,0.001,102670.0,102660.0,1.43898801]
[1746737826317,0.01946717,102730.0,102720.0,0.22390916]
[1746737826476,0.81509749,102730.0,102720.0,0.19470404]
[1746737826675,0.01947191,102710.0,102690.0,0.19472615]
[1746737826875,0.02920947,102700.0,102690.0,0.549267]
[1746737827081,0.0194758,102690.0,102680.0,0.19473929]
[1746737827283,0.70478031,102690.0,102670.0,0.24345835]
[1746737827492,0.70478031,102690.0,102660.0,0.54486407]
[1746737827493,0.22401697,102670.0,102660.0,0.21940492]
[1746737827704,0.01947675,102680.0,102670.0,0.20453862]
[1746737827926,0.29542785,102690.0,102680.0,0.19477989]
[1746737828326,0.78597143,102690.0,102670.0,0.21427818]
[1746737828386,0.02921508,102680.0,102670.0,0.22401764]
[1746737828545,0.01947656,102680.0,102670.0,0.93853191]
[1746737828751,0.02921517,102680.0,102670.0,1.32879264]
[1746737829149,0.02147656,102680.0,102670.0,1.27289991]
[1746737829598,0.01173814,102680.0,102670.0,1.27289991]
[1746737829817,0.71631933,102730.0,102700.0,0.2142151]
[1746737830015,0.31484088,102720.0,102710.0,0.194723]
[1746737830271,0.03894326,102710.0,102700.0,0.20447905]
[1746737830475,0.02920711,102710.0,102700.0,0.36689486]
[1746737830759,0.8012335,102710.0,102700.0,0.4]
[1746737830916,0.22399573,102680.0,102670.0,0.19479887]
[1746737831148,0.21427846,102670.0,102660.0,0.01315139]
[1746737831372,0.80644306,102670.0,102660.0,0.01062837]
[1746737831593,0.80644306,102670.0,102660.0,0.41062837]
[1746737831806,0.82304306,102670.0,102660.0,0.41062837]
[1746737832037,0.82304306,102670.0,102660.0,0.40047698]
[1746737832265,0.93944306,102670.0,102660.0,0.00047698]
[1746737832500,0.44794538,102670.0,102660.0,0.00047698]
[1746737832723,0.13366692,102670.0,102660.0,0.00047698]
[1746737832923,0.81618186,102670.0,102660.0,0.19529482]
[1746737833121,0.83844268,102670.0,102660.0,0.00047698]
[1746737833314,0.83844268,102670.0,102660.0,0.00147698]
[1746737833495,0.93844268,102670.0,102660.0,0.00147698]
[1746737833704,0.88844268,102670.0,102660.0,0.00147698]
[1746737833931,0.93844268,102670.0,102660.0,0.00147698]
[1746737834141,0.94244268,102670.0,102660.0,0.00147698]
[1746737834562,0.94244268,102670.0,102660.0,0.00047698]
[1746737834864,0.403945,102670.0,102660.0,0.00047698]
[1746737835193,0.89544268,102670.0,102660.0,0.00047698]
[1746737835977,0.90544268,102670.0,102660.0,0.00047698]
[1746737836108,0.85644268,102670.0,102660.0,0.00047698]
[1746737836308,0.85644268,102670.0,102650.0,0.79710275]
[1746737836309,0.05,102660.0,102650.0,0.79710275]
[1746737836512,0.81795874,102660.0,102650.0,0.36537976]
[1746737836714,0.81552314,102660.0,102650.0,0.36537976]
[1746737837400,0.35522546,102660.0,102650.0,0.36537976]
[1746737837657,0.79672314,102660.0,102650.0,0.36537976]
[1746737837833,0.84672314,102660.0,102650.0,0.36537976]
[1746737838279,0.86182314,102660.0,102650.0,0.36537976]
[1746737838492,1.01754314,102660.0,102650.0,0.36537976]
[1746737838668,1.01754314,102660.0,102650.0,0.76537976]
[1746737839024,0.31996606,102660.0,102650.0,0.76537976]
[1746737839087,0.32396606,102660.0,102650.0,0.76537976]
[1746737839529,0.37396606,102660.0,102650.0,0.76529089]
[1746737839736,0.86546374,102660.0,102650.0,0.76529089]